bitfinex/quotes_ETHUSD_20260121
["timestamp","ask_amount","ask_price","bid_price","bid_amount"]
[1769015452812,0.001,2904.2,2902.1,12.74542759]
[1769015453640,0.571,2904.2,2902.1,12.74542759]
[1769015453955,7.45763455,2904.2,2902.1,12.74542759]
[1769015454137,4.01428902,2904.2,2902.1,12.74542759]
[1769015454505,0.571,2904.2,2902.1,12.74542759]
[1769015454713,0.57,2904.1,2902.3,19.63651395]
[1769015454914,0.001,2902.9,2902.3,19.63651395]
[1769015455371,0.57,2904.1,2902.4,12.74542759]
[1769015456037,0.57,2904.1,2902.1,0.002]
[1769015456038,12.27988026,2903.9,2902.1,0.002]
[1769015456236,2.539853,2903.6,2902.1,0.002]
[1769015456436,12.27988026,2903.3,2902.1,0.002]
[1769015456668,26.55220526,2903.2,2902.1,0.002]
[1769015456870,6.88918742,2903.1,2902.1,0.002]
[1769015457052,19.16906768,2903.1,2902.1,0.002]
[1769015457381,2.48690677,2903.0,2902.1,0.002]
[1769015458877,5.93163724,2903.0,2902.1,0.002]
[1769015459045,22.06464126,2903.0,2902.1,0.002]
[1769015459241,18.6198749,2903.0,2902.1,0.002]
[1769015459458,14.60516254,2903.0,2902.1,0.002]
[1769015459653,2.37498067,2902.9,2902.1,0.002]
[1769015459936,1.80498067,2902.9,2902.1,0.002]
[1769015460177,0.57,2902.8,2902.1,0.002]
[1769015460943,4.01495028,2902.8,2901.5,0.002]
[1769015461457,4.01495028,2902.8,2900.6,12.52288195]
[1769015461458,12.68825577,2902.6,2900.6,0.002]
[1769015461641,22.28231977,2902.3,2900.6,0.002]
[1769015461871,2.66568408,2902.5,2900.6,0.002]
[1769015461872,12.68825577,2902.1,2900.6,0.002]
[1769015462172,2.66568408,2902.5,2900.6,0.002]
[1769015462173,12.68825577,2901.7,2900.6,0.002]
[1769015462342,12.68825577,2902.2,2900.6,0.002]
[1769015462546,0.57,2902.1,2900.6,0.002]
[1769015462762,0.57,2902.1,2900.7,3.44935702]
[1769015462955,4.0158017,2902.1,2900.8,0.3451357]
[1769015463163,12.68825577,2902.0,2900.7,0.002]
[1769015463361,12.68825577,2901.8,2900.7,0.002]
[1769015463571,15.93592377,2901.7,2900.6,0.002]
[1769015463873,12.68825577,2901.7,2900.6,0.002]
[1769015464079,12.68825577,2901.9,2900.6,0.002]
[1769015464301,12.68825577,2901.7,2900.6,0.002]
[1769015464988,0.57,2901.6,2900.6,0.002]
[1769015465491,19.57957959,2902.2,2900.6,0.002]
[1769015465660,0.57,2901.5,2900.6,0.002]
[1769015466289,3.44530577,2902.5,2900.6,12.52288195]
[1769015466494,0.57,2902.4,2900.7,13.77317015]
[1769015466709,0.57,2902.3,2900.7,13.77317015]
[1769015467003,17.53231377,2902.1,2900.6,0.002]
[1769015467315,0.57,2902.0,2900.9,0.002]
[1769015467600,0.57,2901.9,2900.9,0.002]
[1769015468400,6.89037414,2902.6,2900.9,0.002]
[1769015468602,0.57,2901.8,2900.9,0.002]
[1769015468988,7.46227772,2901.8,2900.9,0.002]
[1769015469295,7.46227772,2901.8,2900.6,0.002]
[1769015469296,0.74622777,2901.7,2900.6,0.002]
[1769015470095,12.68825577,2901.5,2899.5,0.002]
[1769015470308,18.024404,2901.6,2899.5,0.002]
[1769015470309,12.68825577,2901.1,2899.5,0.002]
[1769015470493,5.51089951,2901.4,2899.5,0.002]
[1769015470494,12.68825577,2900.9,2899.5,0.002]
[1769015470815,4.019317,2900.7,2899.5,0.002]
[1769015471094,7.46512514,2900.6,2899.5,0.002]
[1769015471264,0.57,2900.5,2899.5,0.002]
[1769015471464,6.89512514,2900.6,2899.5,0.002]
[1769015471681,0.57,2900.5,2899.5,0.002]
[1769015471887,0.74651251,2900.4,2899.5,0.002]
[1769015472086,13.43476828,2900.4,2898.8,0.002]
[1769015472690,0.74651251,2900.4,2898.8,0.002]
[1769015472872,3.44673077,2901.3,2899.2,12.52088195]
[1769015473067,3.44637441,2901.6,2899.2,12.52088195]
[1769015473307,0.57,2901.5,2899.2,12.52088195]
[1769015474706,3.44546732,2902.4,2899.2,12.52088195]
[1769015474910,6.89061154,2902.5,2899.5,13.508294]
[1769015475114,2.50897668,2902.4,2899.6,12.52088195]
[1769015475317,12.68925577,2902.9,2900.1,12.52088195]
[1769015475487,0.57,2902.8,2900.3,12.2142846]
[1769015476616,4.45206,2902.7,2900.3,12.2142846]
[1769015476819,0.502206,2902.6,2900.4,1.22142846]
[1769015477020,6.89037414,2902.6,2900.4,1.22142846]
[1769015477220,6.89037414,2902.6,2900.4,8.11698577]
[1769015477429,3.864794,2902.5,2900.4,4.66918547]
[1769015477769,3.864794,2902.5,2900.4,13.43571306]
[1769015477770,2.822317,2902.5,2900.4,13.43571306]
[1769015478040,14.7050543,2902.5,2900.4,1.22142846]
[1769015478253,11.8827373,2902.1,2899.8,12.2142846]
[1769015478541,2.50406155,2902.4,2900.0,3.44816866]
[1769015478542,3.222232,2902.0,2900.0,3.44816866]
[1769015478704,5.396217,2901.9,2900.1,3.44808907]
[1769015478909,5.396217,2901.9,2900.2,3.44803709]
[1769015479110,6.89227376,2901.8,2900.1,3.44812598]
[1769015479430,0.68922738,2901.7,2900.6,0.002]
[1769015480102,3.256383,2901.6,2900.6,0.002]
[1769015480301,0.57,2901.5,2900.6,0.002]
[1769015480717,0.57,2901.5,2900.4,0.002]
[1769015481120,4.13548712,2901.7,2900.4,0.002]
[1769015481460,0.57,2901.4,2900.4,0.002]
[1769015481802,0.41354871,2901.6,2900.4,0.002]
[1769015482030,4.657559,2901.4,2900.4,0.002]
[1769015482238,16.5402963,2901.4,2899.2,0.002]
[1769015482452,15.563392,2901.2,2899.2,0.002]
[1769015482605,2.74461293,2901.1,2899.3,1.22162846]
[1769015482802,8.113905,2901.2,2899.4,3.44894477]
[1769015483009,11.8827373,2901.3,2899.3,1.22162846]
[1769015483216,3.44696839,2901.1,2899.4,3.44898944]
[1769015483414,0.57,2901.5,2899.5,12.2142846]
[1769015483415,3.44649319,2901.5,2899.5,12.2142846]
[1769015483634,0.41354871,2901.6,2899.5,12.2142846]
[1769015483841,0.57,2901.5,2899.7,12.2142846]
[1769015484431,0.57,2901.5,2899.7,12.14460714]
[1769015484646,2.796302,2901.4,2899.7,12.14460714]
[1769015484852,9.615295,2901.3,2899.2,0.002]
[1769015485131,11.8827373,2900.7,2899.2,0.002]
[1769015485297,13.275094,2900.4,2899.2,0.002]
[1769015485500,0.57,2900.3,2899.2,0.002]
[1769015486234,12.4527373,2900.3,2899.2,0.002]
[1769015486436,1.24527373,2900.2,2899.2,0.002]
[1769015487265,3.44815696,2900.1,2899.2,0.002]
[1769015487414,6.89631392,2900.1,2899.2,0.002]
[1769015487615,6.89631392,2900.1,2898.8,0.002]
[1769015487834,0.57,2900.0,2898.8,0.002]
[1769015488145,0.74663139,2899.9,2898.8,0.002]
[1769015488304,0.74663139,2899.9,2898.6,0.09309724]
[1769015488510,22.746965,2899.8,2898.6,0.09309724]
[1769015488704,13.842184,2899.8,2898.6,0.09309724]
[1769015488907,12.935269,2899.8,2898.6,0.09309724]
[1769015489111,3.44875155,2899.6,2898.6,0.09309724]
[1769015489516,0.57,2899.5,2898.6,0.09309724]
[1769015490261,0.57,2899.5,2898.5,0.002]
[1769015490547,22.975512,2899.1,2897.4,0.002]
[1769015490864,12.67678,2899.1,2897.4,0.002]
[1769015491002,2.45595173,2899.0,2897.4,0.002]
[1769015491329,0.57,2898.9,2897.4,0.002]
[1769015491838,11.8827373,2899.8,2898.8,0.002]
[1769015491839,6.104161,2899.7,2898.8,0.002]
[1769015492134,0.57,2899.0,2898.8,0.002]
[1769015492351,0.57,2899.0,2897.6,12.2162846]
[1769015492352,0.57,2899.0,2898.5,0.002]
[1769015492831,0.57,2899.0,2897.6,0.002]
[1769015493238,6.89916864,2898.9,2897.6,0.002]
[1769015493544,11.8827373,2899.4,2897.6,0.002]
[1769015493545,0.74691686,2898.8,2897.6,0.002]
[1769015493710,0.57,2898.8,2897.6,12.2162846]
[1769015494223,10.34554107,2899.8,2897.6,12.2162846]
[1769015494424,30.0,2899.6,2897.6,12.2162846]
[1769015494734,17.2823963,2899.4,2897.6,0.002]
[1769015494909,2.470318,2899.3,2897.6,0.002]
[1769015495109,1.43530553,2899.2,2897.6,0.002]
[1769015495317,8.893382,2899.0,2897.6,0.002]
[1769015495644,8.097682,2899.0,2897.6,0.002]
[1769015495817,7.005487,2899.0,2897.6,0.002]
[1769015496221,2.722,2899.0,2897.6,0.002]
[1769015496418,0.96206927,2898.9,2897.6,0.002]
[1769015496944,0.96206927,2898.9,2895.7,0.57]
[1769015496945,11.8827373,2898.1,2895.6,12.2142846]
[1769015497143,30.0,2897.8,2895.6,12.2142846]
[1769015497316,10.35303861,2897.7,2895.6,12.2142846]
[1769015497508,11.8827373,2897.5,2894.8,12.2142846]
[1769015497708,17.481612,2897.3,2895.2,3.45398729]
[1769015497913,17.481612,2897.3,2894.9,17.23549057]
[1769015497914,11.8827373,2897.2,2894.9,17.23549057]
[1769015498139,3.39115248,2897.4,2894.9,13.78116721]
[1769015498322,0.57,2897.1,2895.6,6.90695847]
[1769015498519,0.57,2897.1,2894.9,13.78116721]
[1769015498520,0.57,2897.1,2895.1,12.2142846]
[1769015498826,0.57,2897.1,2895.4,3.45373503]
[1769015499055,0.57,2897.1,2895.5,3.4535906]
[1769015499213,10.35303861,2897.7,2895.3,12.2142846]
[1769015499543,2.15639381,2897.6,2895.4,13.2615215]
[1769015499744,15.33345173,2898.0,2895.4,13.2615215]
[1769015499745,11.8827373,2898.0,2895.4,13.2615215]
[1769015499913,0.96206927,2898.9,2895.4,13.2615215]
[1769015499914,0.96206927,2898.9,2895.6,12.2142846]
[1769015500248,0.96206927,2898.9,2896.1,12.2142846]
[1769015500249,0.57,2898.8,2896.1,12.2142846]
[1769015500739,0.57,2898.7,2896.1,12.2142846]
[1769015500947,0.57,2898.6,2896.3,12.2142846]
[1769015501147,24.41900621,2899.5,2896.3,12.2142846]
[1769015501332,11.8827373,2899.1,2896.5,12.2142846]
[1769015501544,8.689076,2899.0,2896.5,12.2142846]
[1769015501841,11.8827373,2898.6,2896.4,6.9051236]
[1769015502041,2.41491243,2898.5,2896.5,0.34545415]
[1769015502214,11.8827373,2898.6,2896.5,0.34545415]
[1769015502416,2.966125,2898.5,2896.5,0.34545415]
[1769015503246,6.9003588,2898.4,2896.6,3.45232341]
[1769015503435,0.571,2898.3,2896.5,0.34545415]
[1769015503744,0.571,2898.3,2896.5,6.9048852]
[1769015503911,0.571,2898.2,2896.5,6.9048852]
[1769015504335,6.9003588,2898.4,2896.5,6.9048852]
[1769015504538,12.4537373,2898.3,2896.3,0.002]
[1769015504746,11.8827373,2898.1,2896.3,0.002]
[1769015505046,21.338572,2897.9,2896.3,0.002]
[1769015505221,5.110753,2897.9,2896.3,0.002]
[1769015505427,4.02189378,2897.8,2896.3,0.002]
[1769015505623,0.69003588,2898.3,2896.3,12.04179021]
[1769015506052,0.571,2898.2,2896.3,12.04179021]
[1769015506345,3.44994135,2898.6,2896.3,12.04179021]
[1769015506346,5.11006363,2899.0,2896.3,12.04179021]
[1769015506560,0.571,2898.6,2896.3,12.04179021]
[1769015507249,5.11006363,2899.6,2896.5,12.03979021]
[1769015507250,0.571,2898.9,2896.5,12.03979021]
[1769015507453,0.571,2898.9,2896.3,0.002]
[1769015507454,0.571,2898.9,2896.7,12.03979021]
[1769015507662,4.02058432,2898.9,2896.7,12.03979021]
[1769015507823,0.571,2898.9,2896.7,12.03979021]
[1769015508030,7.470194,2898.9,2896.7,12.03979021]
[1769015508428,2.826,2898.6,2896.6,6.90464682]
[1769015508949,6.899194,2898.9,2896.6,10.35697023]
[1769015509148,6.413153,2898.5,2896.6,6.90464682]
[1769015509369,3.45013938,2898.5,2896.4,12.03979021]
[1769015510124,4.02102022,2898.6,2896.4,12.03979021]
[1769015510340,7.47104044,2898.6,2896.5,1.20417902]
[1769015510539,3.45002022,2898.6,2896.5,1.20417902]
[1769015510739,0.001,2898.7,2896.5,13.24396923]
[1769015511350,0.001,2898.7,2896.7,12.03979021]
[1769015511535,0.001,2898.7,2896.8,13.4497307]
[1769015513452,0.001,2898.7,2897.0,12.03979021]
[1769015513769,0.571,2899.5,2897.0,12.03979021]
[1769015513933,3.44800519,2900.3,2897.0,12.03979021]
[1769015513934,12.2862508,2900.4,2897.4,12.03979021]
[1769015514138,3.44667149,2901.4,2897.3,5.11006363]
[1769015514139,2.979844,2900.6,2897.6,12.03979021]
[1769015514360,0.8689844,2900.5,2897.8,12.03979021]
[1769015514533,0.571,2900.5,2898.0,12.03979021]
[1769015514734,0.571,2900.5,2898.2,12.03979021]
[1769015515072,12.2862508,2900.9,2898.2,12.03979021]
[1769015515290,3.44696839,2901.1,2898.2,12.03979021]
[1769015515452,0.34479684,2901.0,2898.4,12.03979021]
[1769015515653,0.572,2901.2,2898.4,12.03979021]
[1769015515855,5.736149,2901.1,2898.4,12.03979021]
[1769015516078,3.799237,2901.1,2898.4,12.03979021]
[1769015516256,0.001,2901.2,2898.4,12.03979021]
[1769015516577,0.571,2901.0,2898.4,12.03979021]
[1769015516788,0.571,2900.9,2898.6,12.03979021]
[1769015517078,0.001,2900.8,2898.6,12.03979021]
[1769015517484,0.001,2900.8,2898.7,6.89964466]
[1769015517788,0.001,2900.8,2898.7,10.34946699]
[1769015518264,0.001,2900.8,2898.7,6.89964466]
[1769015518463,0.68954121,2900.7,2898.8,1.38163698]
[1769015518652,0.68954121,2900.7,2898.8,14.17898032]
[1769015518852,1.25954121,2900.7,2898.8,14.17898032]
[1769015519382,18.81975773,2900.5,2898.2,12.79734334]
[1769015519582,2.071095,2900.3,2898.7,3.44975775]
[1769015519753,13.92466673,2900.3,2897.4,12.79734334]
[1769015519953,2.071095,2900.2,2897.6,12.79734334]
[1769015520273,13.92466673,2900.2,2898.1,3.45051711]
[1769015520585,1.39246667,2900.1,2898.8,6.89935452]
[1769015520789,4.13698493,2900.7,2898.8,6.89935452]
[1769015520790,0.68954121,2900.7,2898.8,10.34905784]
[1769015520953,0.57,2900.6,2898.8,10.34905784]
[1769015521149,0.001,2901.2,2898.9,12.79734334]
[1769015521389,0.001,2901.2,2899.1,12.79734334]
[1769015521689,0.001,2901.2,2899.0,6.89893066]
[1769015521993,0.571,2900.8,2899.1,0.68989307]
[1769015522281,0.571,2900.8,2899.0,6.89893066]
[1769015522495,0.001,2900.8,2899.1,12.79734334]
[1769015523006,0.001,2900.8,2899.0,6.89893066]
[1769015523007,0.001,2900.8,2898.9,3.4495459]
[1769015523229,0.001,2900.8,2898.1,3.45053209]
[1769015523230,8.364275,2900.5,2897.9,12.79734334]
[1769015523494,10.023979,2900.2,2898.0,3.45065562]
[1769015523800,8.178979,2900.2,2898.1,1.6247999]
[1769015523998,8.178979,2900.2,2897.3,3.45142916]
[1769015523999,11.85357173,2899.9,2897.2,12.79734334]
[1769015524164,11.85357173,2899.7,2897.6,3.45110069]
[1769015524370,17.75039973,2899.5,2897.6,3.45110746]
[1769015524596,11.85357173,2899.5,2897.2,16.24887406]
[1769015524798,15.49665,2899.4,2897.4,3.45130119]
[1769015525013,14.5885939,2899.3,2897.4,1.62486445]
[1769015525314,12.118183,2899.1,2897.2,3.45152579]
[1769015525478,7.46893066,2899.0,2897.0,0.002]
[1769015525681,3.44946533,2899.0,2897.0,0.002]
[1769015525879,0.57,2898.9,2897.0,0.002]
[1769015526173,0.97194653,2898.8,2897.0,12.79934334]
[1769015526372,6.8972959,2899.7,2897.0,12.79934334]
[1769015526573,3.484775,2899.7,2897.0,12.79934334]
[1769015526778,0.57,2899.6,2897.0,12.79934334]
[1769015527499,11.85357173,2899.4,2897.1,10.35518274]
[1769015528069,13.511791,2899.3,2897.1,6.90345516]
[1769015528295,4.520171,2899.1,2897.1,6.90345516]
[1769015528501,2.050598,2899.1,2897.1,6.90345516]
[1769015528899,2.050598,2899.1,2897.1,3.45172758]
[1769015529104,2.050598,2899.1,2897.1,6.90345516]
[1769015529377,2.53653627,2899.2,2897.2,12.79934334]
[1769015529703,0.001,2899.4,2897.4,12.79734334]
[1769015530090,0.001,2899.4,2897.6,12.79734334]
[1769015531381,0.001,2899.4,2897.7,6.90202574]
[1769015531582,0.001,2899.4,2897.5,3.45115536]
[1769015531903,0.001,2899.4,2897.6,3.45113189]
[1769015532092,1.03572547,2899.4,2897.6,3.45113189]
[1769015532293,1.03572547,2899.4,2897.6,3.45113197]
[1769015532497,0.001,2899.4,2897.6,6.90226394]
[1769015532895,0.001,2899.4,2897.6,10.35339591]
[1769015533202,0.571,2899.4,2897.6,6.90226394]
[1769015533503,0.571,2899.4,2897.3,3.45141113]
[1769015533504,6.89845474,2899.2,2897.7,0.69022639]
[1769015533703,6.89845474,2899.2,2897.3,3.45148639]
[1769015533908,2.626827,2899.3,2897.7,3.45101287]
[1769015534131,0.57,2899.2,2897.2,0.002]
[1769015534492,5.434965,2899.1,2897.4,3.45127624]
[1769015534696,0.57,2899.2,2897.3,3.45146349]
[1769015534999,0.57,2899.2,2897.2,0.002]
[1769015535000,7.550113,2899.1,2897.4,0.34534635]
[1769015535198,7.550113,2899.1,2897.2,0.002]
[1769015535199,11.85357173,2899.1,2897.2,0.002]
[1769015535913,6.89893066,2899.0,2897.2,0.002]
[1769015536709,11.86763267,2898.9,2897.2,0.002]
[1769015537213,11.86763267,2898.7,2897.2,0.002]
[1769015537918,2.20654,2899.2,2897.2,12.46080237]
[1769015538123,3.4491084,2899.3,2897.3,1.24608024]
[1769015538124,0.56556484,2899.1,2897.3,1.24608024]
[1769015538296,1.13556484,2899.1,2897.3,1.24608024]
[1769015538786,13.00319751,2899.1,2897.2,0.002]
[1769015539121,12.43319751,2899.1,2897.2,0.002]
[1769015539316,0.56556484,2899.1,2897.2,12.46080237]
[1769015539520,0.57,2899.0,2897.2,12.46080237]
[1769015539720,6.89916864,2898.9,2897.2,0.002]
[1769015539892,10.599227,2898.7,2897.2,0.002]
[1769015540091,6.778989,2898.7,2897.2,0.002]
[1769015541020,0.74691686,2898.8,2897.2,6.90515661]
[1769015541528,0.57,2898.7,2897.2,3.45354817]
[1769015541902,4.19673858,2898.8,2897.2,0.002]
[1769015542103,1.33463229,2898.7,2897.2,0.002]
[1769015543021,13.20226496,2898.7,2897.2,0.002]
[1769015543720,12.63226496,2898.7,2897.2,0.002]
[1769015543920,0.571,2898.6,2897.2,0.002]
[1769015544087,0.571,2898.5,2897.2,0.002]
[1769015544489,0.76463229,2898.7,2897.2,0.002]
[1769015544810,0.571,2898.8,2897.2,12.46080237]
[1769015545123,0.572,2899.4,2897.2,12.46080237]
[1769015545513,0.001,2899.4,2897.4,12.45880237]
[1769015546124,0.001,2899.4,2897.5,22.81255558]
[1769015546621,0.001,2899.4,2897.5,6.90250214]
[1769015546922,0.69085804,2899.4,2897.6,0.69025021]
[1769015547091,0.572,2899.4,2897.6,13.14905258]
[1769015547287,0.001,2899.4,2897.6,13.14905258]
[1769015548436,0.001,2899.4,2897.8,12.45880237]
[1769015548723,0.571,2900.3,2897.8,5.10775768]
[1769015549020,0.571,2900.3,2897.9,12.45880237]
[1769015549021,5.285381,2900.1,2897.9,12.45880237]
[1769015549232,0.5285381,2900.0,2898.0,1.24588024]
[1769015549424,11.86763267,2899.9,2898.0,1.24588024]
[1769015549592,11.86763267,2899.9,2897.7,10.35303861]
[1769015549794,13.79167921,2900.3,2897.7,10.35303861]
[1769015549795,0.571,2899.8,2897.8,12.45880237]
[1769015550044,0.571,2900.1,2897.8,12.27945743]
[1769015550527,4.01921276,2900.1,2898.0,12.45880237]
[1769015550693,15.31507639,2900.7,2898.0,12.45880237]
[1769015550893,11.86763267,2900.5,2898.1,1.9238693]
[1769015551427,11.86763267,2900.5,2898.1,14.38267167]
[1769015551592,2.10160764,2900.6,2898.1,14.38267167]
[1769015551593,1.53160764,2900.6,2898.1,14.38267167]
[1769015551803,0.57,2900.6,2898.1,14.38267167]
[1769015552323,6.89488744,2900.7,2898.1,14.38267167]
[1769015552636,2.071689,2900.7,2898.3,12.45880237]
[1769015552791,0.57,2900.6,2898.3,12.45880237]
[1769015553401,3.44832487,2900.8,2898.3,12.45880237]
[1769015553615,0.001,2899.8,2898.5,12.45880237]
[1769015554534,0.001,2899.8,2898.7,12.45880237]
[1769015554729,1.53159575,2900.7,2898.7,12.45880237]
[1769015554936,2.10159575,2900.7,2898.7,12.45880237]
[1769015555234,0.001,2900.8,2898.8,14.38267167]
[1769015555397,3.44835535,2900.8,2898.8,14.38267167]
[1769015555604,0.001,2900.8,2898.8,14.38267167]
[1769015556614,0.001,2900.8,2899.0,12.45880237]
[1769015557642,0.001,2900.8,2898.9,6.89916864]
[1769015557808,1.18786327,2900.8,2898.9,10.34875296]
[1769015558135,1.18786327,2900.8,2898.9,3.44958432]
[1769015558136,13.05549594,2900.8,2898.9,3.44958432]
[1769015558629,22.29551267,2900.6,2898.6,6.8998827]
[1769015558822,11.86763267,2900.6,2898.6,6.8998827]
[1769015559228,11.86763267,2900.6,2898.6,3.44994135]
[1769015559430,1.87625201,2900.5,2898.7,1.59087437]
[1769015559733,13.74388468,2900.5,2898.7,1.59087437]
[1769015560137,7.831282,2900.4,2898.7,1.59087437]
[1769015560339,6.475281,2900.3,2898.7,1.59087437]
[1769015560631,5.765084,2900.3,2898.7,1.59087437]
[1769015560833,11.86763267,2900.1,2898.0,12.45880237]
[1769015561024,11.86763267,2900.1,2898.2,3.45033991]
[1769015561222,0.57,2900.3,2898.7,6.89962052]
[1769015561535,0.57,2900.3,2898.7,3.44979819]
[1769015561733,12.43763267,2900.3,2897.9,17.56656005]
[1769015561947,11.86763267,2900.1,2898.3,3.45029537]
[1769015562104,11.86763267,2900.1,2898.0,5.20728899]
[1769015562310,11.86763267,2900.1,2898.4,3.45011141]
[1769015562711,6.89655172,2900.0,2898.0,1.75665601]
[1769015563037,18.76418439,2900.0,2898.1,3.45053655]
[1769015563238,2.22124007,2899.9,2898.2,0.8574635]
[1769015563444,11.86763267,2899.7,2898.2,0.8574635]
[1769015563634,2.22124007,2899.9,2897.4,12.46080237]
[1769015563635,11.86763267,2899.5,2897.4,12.46080237]
[1769015563828,22.17871467,2899.3,2897.4,12.46080237]
[1769015564037,15.45258526,2900.0,2897.4,0.002]
[1769015564206,0.57,2900.0,2898.1,12.45880237]
[1769015564406,0.57,2900.0,2897.6,12.45880237]
[1769015564407,14.860231,2899.7,2897.6,12.45880237]
[1769015564651,11.86763267,2899.4,2897.7,1.24588024]
[1769015564810,11.86763267,2899.2,2897.4,0.002]
[1769015565009,10.3473252,2899.3,2897.4,0.002]
[1769015565010,11.86763267,2899.0,2897.4,0.002]
[1769015565204,0.57,2898.9,2897.4,0.002]
[1769015565436,12.43763267,2898.9,2897.4,0.002]
[1769015566038,11.86763267,2898.9,2897.4,3.4533619]
[1769015566238,0.57,2898.8,2898.3,0.002]
[1769015566414,0.57,2898.7,2897.4,0.002]
[1769015566614,0.57,2898.7,2898.0,0.002]
[1769015567549,4.01984772,2898.7,2898.0,0.002]
[1769015568046,0.57,2898.7,2898.0,0.002]
[1769015568438,4.01991336,2898.7,2898.0,0.002]
[1769015569014,4.4219047,2898.7,2898.0,0.002]
[1769015569416,4.4219047,2898.7,2896.9,0.002]
[1769015569417,11.79980099,2898.4,2896.9,0.002]
[1769015570158,7.30172703,2898.7,2896.9,0.002]
[1769015570446,0.57,2898.3,2896.9,0.002]
[1769015570646,0.57,2898.3,2896.9,3.45394395]
[1769015570823,7.30172703,2898.7,2896.9,0.002]
[1769015571024,0.57,2898.2,2897.0,0.34780742]
[1769015571225,0.57,2898.2,2897.0,0.002]
[1769015571553,0.57,2898.3,2897.0,12.69001434]
[1769015573056,4.02038491,2898.3,2897.0,0.002]
[1769015573260,0.57,2898.3,2897.0,0.002]
[1769015573468,0.57,2898.3,2897.0,12.69001434]
[1769015573759,0.57,2898.6,2897.1,13.95721577]
[1769015574552,12.36980099,2898.6,2897.1,1.26920143]
[1769015574734,12.36980099,2898.6,2897.0,0.002]
[1769015574735,0.571,2898.5,2897.0,0.002]
[1769015575370,3.4501794,2898.4,2897.0,0.002]
[1769015575566,4.02109785,2898.5,2897.0,12.69001434]
[1769015575765,0.571,2898.4,2897.1,13.95721577]
[1769015576062,0.571,2898.4,2897.1,1.26920143]
[1769015576261,0.571,2898.4,2897.0,0.002]
[1769015577671,7.4715614,2898.4,2897.0,0.002]
[1769015577871,11.79980099,2898.2,2897.0,0.002]
[1769015578035,11.79980099,2898.0,2897.0,0.002]
[1769015578367,11.79980099,2898.0,2896.8,0.002]
[1769015578368,27.54528099,2897.7,2896.3,0.002]
[1769015578540,27.54528099,2897.7,2894.9,0.002]
[1769015578541,11.79980099,2897.4,2895.2,3.4538916]
[1769015578743,11.79980099,2897.4,2894.9,12.69001434]
[1769015578744,12.85323869,2897.0,2894.9,0.002]
[1769015578957,5.427385,2896.9,2894.9,0.002]
[1769015579125,5.427385,2896.9,2895.0,3.45416902]
[1769015579126,3.035761,2896.8,2895.0,3.45416902]
[1769015579330,14.49923866,2896.7,2894.9,0.002]
[1769015579565,24.87843223,2896.6,2894.9,0.002]
[1769015579870,19.75788551,2896.6,2894.9,0.002]
[1769015580238,12.85323869,2896.0,2893.3,12.1760222]
[1769015580455,2.194265,2895.8,2893.7,12.1760222]
[1769015580651,12.85323869,2896.4,2893.7,12.1760222]
[1769015580969,0.571,2896.4,2894.6,12.1760222]
[1769015581377,13.42423869,2896.4,2894.5,6.90962562]
[1769015581687,3.45280022,2896.2,2894.6,0.69096256]
[1769015581828,0.571,2896.1,2894.6,3.45461596]
[1769015582030,0.571,2896.1,2893.5,12.1760222]
[1769015582031,3.087465,2896.0,2893.5,12.1760222]
[1769015582347,0.571,2896.1,2893.4,3.45605715]
[1769015582348,13.42423869,2896.1,2893.8,12.1760222]
[1769015582553,13.42423869,2896.1,2893.4,3.45608344]
[1769015582554,1.34242387,2896.0,2894.6,3.45469508]
[1769015582880,0.571,2896.2,2894.6,6.90940384]
[1769015583330,16.30535442,2896.8,2894.7,12.1760222]
[1769015583331,0.571,2896.4,2894.7,12.1760222]
[1769015583530,0.571,2896.4,2894.8,10.36341024]
[1769015583932,0.571,2896.4,2894.8,6.90894016]
[1769015584137,0.40235119,2896.3,2894.9,1.39651729]
[1769015584338,0.571,2896.4,2894.9,1.39651729]
[1769015584966,2.944681,2897.2,2894.9,13.57253949]
[1769015585166,0.571,2896.8,2894.9,13.57253949]
[1769015585669,0.571,2896.8,2895.0,10.36269429]
[1769015585872,0.571,2896.8,2895.1,12.1760222]
[1769015586172,16.30477498,2897.3,2895.2,1.21760222]
[1769015586173,12.85323869,2897.3,2895.2,1.21760222]
[1769015586376,12.85323869,2897.9,2895.2,13.39362442]
[1769015586535,6.90178756,2897.8,2895.2,13.39362442]
[1769015586735,0.571,2897.7,2895.2,13.39362442]
[1769015586932,13.42423869,2897.7,2895.2,13.39362442]
[1769015587275,2.03260263,2897.6,2895.3,13.51538464]
[1769015587775,3.860777,2898.1,2895.5,12.1760222]
[1769015587988,0.571,2897.9,2895.5,12.1760222]
[1769015588282,0.571,2897.9,2895.4,17.26877115]
[1769015588283,0.571,2898.1,2895.9,12.1760222]
[1769015588442,0.571,2898.1,2896.1,12.1760222]
[1769015588982,0.001,2898.2,2896.1,12.1760222]
[1769015589199,0.001,2898.2,2896.2,12.1760222]
[1769015589535,0.001,2898.2,2896.3,10.358043]
[1769015589764,0.001,2898.2,2896.4,12.1760222]
[1769015589947,0.001,2898.2,2896.6,12.1760222]
[1769015590575,3.44863261,2899.7,2896.7,12.1760222]
[1769015590805,6.89726522,2899.7,2896.9,12.1760222]
[1769015590973,0.571,2899.6,2896.9,12.1760222]
[1769015591171,2.03215039,2899.5,2897.1,12.1760222]
[1769015592115,2.03215039,2899.5,2897.3,12.1760222]
[1769015592116,2.60315039,2899.5,2897.3,12.1760222]
[1769015592257,3.44823355,2900.1,2897.7,12.1760222]
[1769015592258,3.748099,2900.1,2897.7,12.1760222]
[1769015592457,12.85323869,2900.3,2897.7,12.1760222]
[1769015592658,0.571,2900.2,2897.7,12.1760222]
[1769015592859,16.30119557,2900.3,2897.7,12.1760222]
[1769015592860,13.42423869,2900.3,2897.7,12.1760222]
[1769015593065,1.34242387,2900.2,2897.9,12.1760222]
[1769015593277,0.571,2900.3,2897.9,12.1760222]